bitfinex-derivatives/quotes_BTCF0:USTF0_20250402
["timestamp","ask_amount","ask_price","bid_price","bid_amount"]
[1743598799196,0.0335,85079.0,85075.0,0.3608]
[1743598799197,0.03470001,85079.0,85075.0,0.3608]
[1743598799497,0.03470001,85079.0,85076.0,0.0637]
[1743598799700,0.03470001,85079.0,85076.0,0.0649]
[1743598800704,0.00120001,85079.0,85076.0,0.0649]
[1743598802696,0.0334,85078.0,85076.0,0.0649]
[1743598803403,0.0334,85078.0,85077.0,0.0323]
[1743598803600,0.46652053,85085.0,85077.0,0.0335]
[1743598803802,0.0334,85083.0,85077.0,0.0641]
[1743598804104,0.03464001,85083.0,85077.0,0.0641]
[1743598805000,0.3608,85079.0,85077.0,0.0012]
[1743598805200,0.031,85078.0,85077.0,0.0012]
[1743598805393,0.32094919,85078.0,85058.0,0.42004072]
[1743598805594,0.3608,85067.0,85046.0,0.00047033]
[1743598805800,0.3608,85053.0,85046.0,0.00047033]
[1743598805996,0.095,85052.0,85046.0,0.00047033]
[1743598806311,0.22867206,85052.0,85046.0,0.00047033]
[1743598808206,0.3608,85047.0,85046.0,0.00047033]
[1743598808509,0.42140001,85047.0,85040.0,0.00017639]
[1743598808801,0.42140001,85047.0,85036.0,0.564798]
[1743598808802,0.3608,85041.0,85036.0,0.564798]
[1743598809006,0.3608,85037.0,85036.0,0.565438]
[1743598809205,0.49936,85037.0,85036.0,0.565438]
[1743598809394,0.63371314,85037.0,85036.0,0.565438]
[1743598810511,0.63371314,85037.0,85036.0,0.00064]
[1743598810810,0.63371314,85037.0,85030.0,0.00047042]
[1743598811107,0.63371314,85037.0,85021.0,0.20984721]
[1743598811108,0.3608,85032.0,85021.0,0.20984721]
[1743598811306,0.3608,85022.0,85009.0,0.3608]
[1743598811505,0.1404,85021.0,85014.0,0.00107051]
[1743598811705,0.33752455,85021.0,85014.0,0.00107051]
[1743598811907,0.3608,85015.0,85014.0,0.00107051]
[1743598812105,0.42152,85015.0,85014.0,0.00047051]
[1743598812410,0.55792455,85015.0,85014.0,0.00047051]
[1743598812710,0.00072,85015.0,85014.0,0.00047051]
[1743598813212,0.00072,85015.0,85014.0,0.00107051]
[1743598814106,0.00072,85015.0,85014.0,0.00047051]
[1743598814411,0.00072,85015.0,85014.0,1.14047051]
[1743598814709,0.00072,85015.0,85014.0,1.14119051]
[1743598815102,0.00017639,85023.0,85014.0,1.14119051]
[1743598815299,0.00017639,85023.0,85015.0,0.14526]
[1743598815498,0.10519597,85029.0,85015.0,0.1459]
[1743598815911,0.10519597,85029.0,85020.0,0.3608]
[1743598816214,0.10519597,85029.0,85021.0,0.0994]
[1743598816407,0.10519597,85029.0,85027.0,0.3608]
[1743598816600,0.10519597,85029.0,85028.0,0.0654]
[1743598816601,0.10583597,85029.0,85028.0,0.0654]
[1743598816797,0.10583597,85029.0,85028.0,0.06604]
[1743598817107,0.07832,85065.0,85028.0,0.21604]
[1743598817302,0.17657681,85043.0,85039.0,0.3608]
[1743598817504,0.00088001,85043.0,85040.0,0.14376]
[1743598817808,0.10494641,85047.0,85041.0,1.14]
[1743598818013,0.10578641,85047.0,85041.0,1.14084]
[1743598819016,0.0334,85046.0,85041.0,0.00084]
[1743598819213,0.03424,85046.0,85041.0,0.06624]
[1743598819403,0.0326,85045.0,85041.0,0.06624]
[1743598819603,0.0326,85045.0,85035.0,0.00017639]
[1743598819604,0.3608,85042.0,85035.0,0.00017639]
[1743598819815,0.0655,85041.0,85035.0,0.00017639]
[1743598820111,0.20263925,85041.0,85035.0,0.00017639]
[1743598821307,0.04350001,85041.0,85035.0,0.00017639]
[1743598821508,0.0329,85041.0,85035.0,0.00101639]
[1743598821704,0.3608,85050.0,85037.0,0.3608]
[1743598822015,0.0329,85049.0,85038.0,0.0305]
[1743598822217,0.03374,85049.0,85038.0,0.0305]
[1743598822413,0.03374,85049.0,85038.0,0.03138]
[1743598823003,0.03374,85049.0,85038.0,0.04138]
[1743598824214,0.0328,85048.0,85038.0,0.04138]
[1743598824408,0.3608,85042.0,85038.0,0.04138]
[1743598824608,0.0328,85041.0,85038.0,0.04138]
[1743598824814,0.06728001,85041.0,85038.0,0.04138]
[1743598825208,0.06728001,85041.0,85039.0,0.033]
[1743598825409,0.03448001,85041.0,85039.0,0.033]
[1743598825603,0.3608,85050.0,85040.0,0.0322]
[1743598825820,0.5364968,85081.0,85049.0,0.3608]
[1743598826022,0.0332,85070.0,85061.0,0.3608]
[1743598826210,0.03428,85070.0,85062.0,0.0657]
[1743598826406,0.03428,85070.0,85062.0,0.0767]
[1743598826810,0.0318,85069.0,85062.0,0.0767]
[1743598827010,0.03284001,85069.0,85062.0,0.0767]
[1743598827225,0.0332,85068.0,85062.0,0.0667]
[1743598827519,0.03424001,85068.0,85062.0,0.0667]
[1743598827716,0.0318,85067.0,85062.0,0.0667]
[1743598828218,0.0332,85066.0,85062.0,0.0667]
[1743598828922,0.0319,85065.0,85062.0,0.0667]
[1743598829423,0.0319,85064.0,85062.0,0.0667]
[1743598829625,0.0319,85064.0,85062.0,0.0345]
[1743598829916,0.0319,85063.0,85062.0,0.001]
[1743598830115,0.06548,85063.0,85058.0,0.065]
[1743598830322,0.0319,85062.0,85058.0,0.001]
[1743598830514,0.03258,85062.0,85057.0,0.00017639]
[1743598830714,0.0319,85061.0,85057.0,0.00017639]
[1743598830922,0.001,85061.0,85057.0,0.01002061]
[1743598831126,0.0319,85062.0,85058.0,0.065]
[1743598831321,0.15981128,85060.0,85058.0,0.001]
[1743598831620,0.0654,85059.0,85057.0,0.00017639]
[1743598831826,0.06600001,85059.0,85057.0,0.00017639]
[1743598832021,0.0316,85058.0,85057.0,0.00017639]
[1743598832219,0.03220001,85058.0,85057.0,0.00017639]
[1743598832519,0.19710144,85058.0,85057.0,0.00017639]
[1743598833216,0.20710144,85058.0,85057.0,0.00017639]
[1743598834319,0.17390144,85058.0,85057.0,0.00017639]
[1743598834622,0.00060001,85058.0,85057.0,0.00017639]
[1743598837423,0.19479961,85058.0,85029.0,0.07912]
[1743598837611,0.3608,85041.0,85034.0,0.0329]
[1743598837815,0.0966,85040.0,85023.0,0.0634]
[1743598838023,0.23956571,85040.0,85024.0,0.0329]
[1743598838212,0.3608,85033.0,85024.0,0.0329]
[1743598838419,0.0633,85032.0,85024.0,0.0329]
[1743598838625,0.06398,85032.0,85024.0,0.0329]
[1743598839222,0.13598132,85031.0,85023.0,0.00017639]
[1743598839418,0.19996132,85031.0,85023.0,0.00017639]
[1743598839820,0.06398,85031.0,85023.0,0.00017639]
[1743598840126,0.12884707,85031.0,85026.0,0.00867115]
[1743598840429,0.00068,85031.0,85030.0,0.01047042]
[1743598840624,0.1594752,85040.0,85030.0,0.04341042]
[1743598840926,0.13261924,85039.0,85030.0,0.06651042]
[1743598841128,0.20921925,85039.0,85030.0,0.00151042]
[1743598841428,0.3608,85036.0,85030.0,0.00151042]
[1743598841620,0.066,85035.0,85030.0,0.00047042]
[1743598841820,0.19955058,85035.0,85030.0,0.00047042]
[1743598843919,0.19955058,85035.0,85023.0,0.00017639]
[1743598844120,0.3608,85024.0,85023.0,0.00017639]
[1743598844426,0.38140001,85024.0,85023.0,0.00017639]
[1743598844618,0.50806299,85024.0,85014.0,0.00047051]
[1743598844814,0.3608,85015.0,85014.0,0.00047051]
[1743598845038,0.36140001,85015.0,85014.0,0.00047051]
[1743598845325,0.1349973,85015.0,85014.0,0.00047051]
[1743598845525,0.00060001,85015.0,85014.0,0.00147051]
[1743598845731,0.3608,85024.0,85014.0,0.00147051]
[1743598846030,0.36184001,85024.0,85022.0,1.14]
[1743598846226,0.36184001,85024.0,85023.0,0.0625]
[1743598846421,0.36184001,85024.0,85023.0,0.06354]
[1743598846728,0.00104001,85024.0,85023.0,0.06354]
[1743598846930,0.3916,85032.0,85023.0,0.09444]
[1743598847130,0.0329,85031.0,85023.0,0.06354]
[1743598847317,0.0339,85031.0,85023.0,0.06354]
[1743598847720,0.001,85031.0,85023.0,0.06354]
[1743598847919,0.00017639,85040.0,85026.0,0.3608]
[1743598848128,0.00017639,85040.0,85030.0,0.15929881]
[1743598848322,0.00017639,85040.0,85037.0,0.3608]
[1743598848323,0.0012164,85040.0,85037.0,0.3608]
[1743598848630,0.00017639,85040.0,85038.0,0.0652]
[1743598849026,0.00081639,85040.0,85038.0,0.0652]
[1743598849219,0.00081639,85040.0,85038.0,0.0328]
[1743598849530,0.00081639,85040.0,85032.0,0.0324]
[1743598849722,0.00081639,85040.0,85032.0,0.0662]
[1743598850026,0.13172628,85039.0,85032.0,0.0338]
[1743598850231,0.3608,85037.0,85032.0,0.001]
[1743598850425,0.0301,85036.0,85032.0,0.001]
[1743598850615,0.16242629,85036.0,85032.0,0.001]
[1743598851631,0.00060001,85036.0,85035.0,0.3608]
[1743598851831,0.00017639,85040.0,85035.0,0.45048]
[1743598852034,0.21083616,85054.0,85039.0,0.3608]
[1743598852222,0.21083616,85054.0,85043.0,0.3608]
[1743598852421,0.21083616,85054.0,85044.0,0.0659]
[1743598852622,0.21083616,85054.0,85052.0,0.3608]
[1743598852918,0.21183616,85054.0,85053.0,0.0659]
[1743598853122,0.21183616,85054.0,85053.0,0.0669]
[1743598853318,0.001,85054.0,85053.0,0.0669]
[1743598853931,0.001,85054.0,85053.0,0.0974]
[1743598855028,0.00017639,85062.0,85053.0,0.0974]
[1743598855532,0.00017639,85062.0,85053.0,0.1074]
[1743598856129,0.00017639,85062.0,85053.0,0.11610732]
[1743598858828,0.00017639,85062.0,85053.0,0.10610732]
[1743598859727,0.00017639,85062.0,85059.0,0.3608]
[1743598859931,0.00017639,85062.0,85060.0,0.0604]
[1743598860139,0.00017639,85062.0,85060.0,0.06212]
[1743598860736,0.3608,85061.0,85060.0,0.00172]
[1743598860934,0.3934,85061.0,85054.0,0.0604]
[1743598861237,0.3934,85061.0,85054.0,0.06212]
[1743598863834,0.3934,85061.0,85054.0,0.00172]
[1743598864137,0.12664665,85060.0,85054.0,0.00172]
[1743598864339,0.15904665,85060.0,85054.0,0.00172]
[1743598865033,0.00017639,85062.0,85059.0,0.3608]
[1743598865226,0.00017639,85062.0,85060.0,0.094]
[1743598865433,0.00017639,85062.0,85060.0,0.09572]
[1743598869540,0.00017639,85062.0,85060.0,0.06332]
[1743598869747,0.00017639,85062.0,85061.0,0.07996]
[1743598869941,0.00017639,85062.0,85061.0,0.08168]
[1743598870347,0.00017639,85062.0,85061.0,0.11218]
[1743598870744,0.00017639,85062.0,85061.0,0.03222]
[1743598871142,0.00017639,85062.0,85061.0,0.0305]
[1743598871340,0.00017639,85062.0,85061.0,0.03222]
[1743598871748,0.00017639,85062.0,85061.0,0.00172]
[1743598872260,0.00017639,85062.0,85061.0,0.03392]
[1743598876765,0.00017639,85062.0,85061.0,0.00172]
[1743598877056,0.13118951,85062.0,85061.0,0.00172]
[1743598877255,0.13118951,85062.0,85052.0,0.3608]
[1743598877444,0.0614,85061.0,85052.0,0.36256]
[1743598877848,0.13349639,85060.0,85052.0,0.36256]
[1743598878048,0.50429639,85060.0,85052.0,0.36256]
[1743598878255,0.0614,85059.0,85052.0,0.36256]
[1743598878651,0.13349639,85058.0,85052.0,0.36256]
[1743598879050,0.0614,85057.0,85052.0,0.36256]
[1743598879444,0.13026913,85056.0,85052.0,0.36256]
[1743598879651,0.13026913,85056.0,85053.0,0.03]
[1743598879848,0.0306,85057.0,85053.0,0.09642]
[1743598880257,0.0306,85057.0,85053.0,0.06412]
[1743598880450,0.0328,85056.0,85053.0,0.06412]
[1743598880841,0.0319,85055.0,85053.0,0.06412]
[1743598881944,0.0328,85054.0,85053.0,0.06412]
[1743598885458,0.0328,85054.0,85053.0,0.03172]
[1743598886245,0.0328,85054.0,85053.0,0.06432]
[1743598889869,0.0328,85054.0,85053.0,0.00172]
[1743598890254,0.16662196,85054.0,85044.0,0.27879281]
[1743598890456,0.3608,85051.0,85045.0,0.00193639]
[1743598890662,0.0643,85050.0,85045.0,0.00193639]
[1743598890863,0.19812196,85050.0,85045.0,0.00193639]
[1743598895363,0.20812196,85050.0,85045.0,0.00193639]
[1743598896153,0.20812196,85050.0,85045.0,0.00017639]
[1743598896872,0.21715845,85050.0,85045.0,0.00017639]
[1743598897865,0.07984,85049.0,85045.0,0.00017639]
[1743598898062,0.13984,85049.0,85045.0,0.00017639]
[1743598898272,0.19816998,85048.0,85045.0,0.00017639]
[1743598898460,0.25816998,85048.0,85045.0,0.00017639]
[1743598900766,0.43428422,85048.0,85045.0,0.00017639]
[1743598902669,0.34108422,85048.0,85045.0,0.00017639]
[1743598903868,0.17611424,85048.0,85045.0,0.36097639]
[1743598904073,0.17611424,85048.0,85046.0,0.091]
[1743598904266,0.17611424,85048.0,85046.0,0.09272]
[1743598904675,0.0308,85052.0,85046.0,0.09272]
[1743598904869,0.0308,85052.0,85046.0,0.06272]
[1743598905170,0.15399715,85051.0,85046.0,0.06272]
[1743598905674,0.0309,85050.0,85046.0,0.06272]
[1743598906170,0.15303644,85049.0,85046.0,0.06272]
[1743598906562,0.0636,85048.0,85046.0,0.06272]
[1743598906767,0.0636,85048.0,85046.0,0.031]
[1743598906968,0.13559121,85047.0,85046.0,0.031]
[1743598907175,0.13559121,85047.0,85046.0,0.0635]
[1743598907475,0.16649121,85052.0,85046.0,0.06522]
[1743598907672,0.0611,85052.0,85046.0,0.06522]
[1743598907876,0.12591966,85051.0,85046.0,0.06522]
[1743598908279,0.0326,85050.0,85046.0,0.06522]
[1743598909269,0.03,85049.0,85046.0,0.06522]
[1743598909474,0.05,85049.0,85046.0,0.06522]
[1743598909679,0.0326,85048.0,85046.0,0.06522]
[1743598910185,0.14063322,85052.0,85046.0,0.06522]
[1743598911476,0.14063322,85052.0,85051.0,0.3608]
[1743598911669,0.14063322,85052.0,85051.0,0.4424]
[1743598911981,0.14063322,85058.0,85051.0,0.4424]
[1743598912183,0.14063322,85058.0,85052.0,0.0982]
[1743598912374,0.14063322,85058.0,85052.0,0.1]
[1743598912676,0.0327,85057.0,85052.0,0.1]
[1743598913783,0.0327,85057.0,85052.0,0.0682]
[1743598913982,0.0625,85056.0,85052.0,0.0682]
[1743598914370,0.0329,85055.0,85052.0,0.0682]
[1743598914780,0.0636,85055.0,85052.0,0.0682]
[1743598915171,0.0636,85055.0,85052.0,0.0018]
[1743598915578,0.3608,85053.0,85052.0,0.0018]
[1743598915775,0.4208,85053.0,85046.0,0.062]
[1743598915972,0.0636,85052.0,85046.0,0.06372]
[1743598916182,0.1236,85052.0,85046.0,0.06372]
[1743598916481,0.12755776,85051.0,85046.0,0.06372]
[1743598916683,0.18755776,85051.0,85046.0,0.06372]
[1743598916884,0.0635,85050.0,85046.0,0.06372]
[1743598917301,0.12797143,85049.0,85046.0,0.06372]
[1743598917671,0.0635,85048.0,85046.0,0.06372]
[1743598918073,0.12608786,85047.0,85046.0,0.06372]
[1743598918472,0.15638786,85047.0,85046.0,0.06372]
[1743598920286,0.12608786,85047.0,85046.0,0.06372]
[1743598920479,0.0315,85057.0,85046.0,0.06372]
[1743598920679,0.17611424,85056.0,85051.0,0.3608]
[1743598920882,0.17611424,85056.0,85052.0,0.032]
[1743598921081,0.17611424,85056.0,85052.0,0.06492]
[1743598922578,0.0315,85055.0,85052.0,0.06492]
[1743598924287,0.0314,85054.0,85052.0,0.06492]
[1743598924689,0.0314,85053.0,85052.0,0.00172]
[1743598924898,0.21625212,85053.0,85052.0,0.00172]
[1743598925189,0.21625212,85053.0,85045.0,0.00017639]
[1743598925495,0.062,85052.0,85045.0,0.00189639]
[1743598925689,0.122,85052.0,85045.0,0.00189639]
[1743598925896,0.16094827,85051.0,85045.0,0.00189639]
[1743598926094,0.3608,85046.0,85045.0,0.00017639]
[1743598926294,0.4208,85046.0,85045.0,0.00017639]
[1743598926492,0.54580848,85046.0,85045.0,0.00017639]
[1743598926692,0.15928704,85045.0,85033.0,0.27879281]
[1743598926887,0.3608,85036.0,85033.0,0.28051281]
[1743598927092,0.0917,85035.0,85033.0,0.28051281]
[1743598927298,0.28669608,85035.0,85033.0,0.28051281]
[1743598927991,0.00721187,85034.0,85033.0,0.28051281]
[1743598928192,0.06721187,85034.0,85033.0,0.28051281]
[1743598928383,0.33245573,85034.0,85033.0,0.28051281]
[1743598928585,0.69325573,85034.0,85027.0,0.34859612]
[1743598928795,0.69325573,85034.0,85027.0,0.34979612]
[1743598929095,0.08669187,85033.0,85027.0,0.34979612]
[1743598929296,0.14669187,85033.0,85027.0,0.34979612]
[1743598929485,0.19117739,85032.0,85027.0,0.34979612]
[1743598929687,0.25117739,85032.0,85027.0,0.34979612]
[1743598930087,0.2524174,85032.0,85027.0,0.34979612]
[1743598930397,0.2524174,85032.0,85027.0,0.0012]
[1743598930592,0.2524174,85032.0,85025.0,0.00017639]
[1743598930794,0.3608,85026.0,85025.0,0.00017639]
[1743598930987,0.37140001,85026.0,85025.0,0.00017639]
[1743598931188,0.49990287,85026.0,85025.0,0.00017639]
[1743598933198,0.00060001,85026.0,85025.0,0.00017639]
[1743598933591,0.00060001,85026.0,85025.0,0.36097639]
[1743598933790,0.17611424,85039.0,85025.0,0.36217639]
[1743598933994,0.17739424,85039.0,85026.0,0.0632]
[1743598934189,0.0309,85038.0,85027.0,1.14]
[1743598934496,0.03218,85038.0,85027.0,1.1512]
[1743598934992,0.14067175,85030.0,85027.0,1.1512]
[1743598935198,0.14067175,85030.0,85028.0,0.0643]
[1743598935400,0.14067175,85030.0,85028.0,0.06558]
[1743598935587,0.14067175,85030.0,85028.0,0.07558]
[1743598936087,0.17611424,85038.0,85028.0,0.07558]
[1743598936284,0.17611424,85038.0,85037.0,0.3608]
[1743598936492,0.17611424,85038.0,85037.0,0.372]
[1743598936696,0.17731425,85038.0,85037.0,0.372]
[1743598938703,0.21044442,85046.0,85037.0,0.4512]
[1743598938896,0.0301,85060.0,85045.0,0.3608]
[1743598939104,0.0301,85060.0,85052.0,0.3608]
[1743598939402,0.0301,85060.0,85053.0,0.0966]
[1743598939596,0.0301,85060.0,85053.0,0.09816]
[1743598940501,0.0301,85060.0,85053.0,0.10975819]
[1743598940901,0.0301,85060.0,85053.0,0.09816]
[1743598942406,0.00017639,85063.0,85053.0,0.09816]
[1743598942899,0.10543979,85058.0,85053.0,0.09816]
[1743598943099,0.10543979,85058.0,85054.0,1.14]
[1743598943404,0.10543979,85058.0,85054.0,1.14164]
[1743598943589,0.10543979,85058.0,85054.0,1.20314]
[1743598943794,0.10543979,85058.0,85054.0,1.21177275]
[1743598944401,0.10543979,85058.0,85054.0,0.07177275]
[1743598945308,0.0301,85057.0,85054.0,0.07177275]
[1743598946300,0.10543979,85058.0,85054.0,0.07177275]
[1743598946502,0.10543979,85060.0,85054.0,0.07177275]
[1743598947194,0.10543979,85060.0,85054.0,0.08177275]
[1743598947503,0.10503979,85060.0,85054.0,0.24177275]
[1743598947701,0.0303,85086.0,85059.0,0.3608]
[1743598947898,0.0303,85086.0,85083.0,0.3608]
[1743598948205,0.0303,85086.0,85084.0,0.0304]
[1743598948402,0.0303,85086.0,85084.0,0.032]
[1743598948603,0.0303,85086.0,85084.0,0.0304]
[1743598950510,0.0303,85086.0,85076.0,0.36097639]
[1743598950809,0.3608,85078.0,85076.0,0.00181639]
[1743598950995,0.0629,85077.0,85076.0,0.00017639]
[1743598951302,0.19628874,85077.0,85076.0,0.00017639]
[1743598951802,0.20628874,85077.0,85076.0,0.00017639]
[1743598952001,0.20628874,85077.0,85056.0,0.20950435]
[1743598952202,0.3608,85066.0,85059.0,0.00156]
[1743598952405,0.0307,85065.0,85059.0,0.00156]
[1743598952706,0.16490717,85065.0,85059.0,0.00156]
[1743598954407,0.031,85064.0,85059.0,0.00156]
[1743598954818,0.19245009,85063.0,85059.0,0.00156]
[1743598955198,0.031,85062.0,85056.0,0.0318]
[1743598955404,0.031,85062.0,85056.0,0.00156]
[1743598955595,0.12525126,85061.0,85056.0,0.00156]
[1743598955800,0.12525126,85061.0,85059.0,0.3608]
[1743598956000,0.12525126,85061.0,85060.0,0.0658]
[1743598956201,0.12525126,85061.0,85060.0,0.06736]
[1743598956402,0.031,85062.0,85060.0,0.06736]
[1743598959207,0.0317,85061.0,85060.0,0.06736]
[1743598959705,0.031,85062.0,85060.0,0.06736]
[1743598960112,0.031,85062.0,85060.0,0.08736]
[1743598961106,0.158869,85061.0,85060.0,0.01156]
[1743598961311,0.191869,85061.0,85060.0,0.01156]
[1743598961803,0.191869,85061.0,85060.0,0.00156]
[1743598962004,0.191869,85061.0,85053.0,0.00017639]
[1743598962005,0.251869,85061.0,85053.0,0.00017639]
[1743598962209,0.3608,85054.0,85053.0,0.00017639]
[1743598962407,0.4208,85054.0,85053.0,0.00017639]
[1743598962608,0.78187452,85054.0,85042.0,0.20950435]
[1743598962911,0.3608,85045.0,85032.0,0.34859612]
[1743598963120,0.3608,85033.0,85032.0,0.34975612]
[1743598963407,0.4208,85033.0,85032.0,0.34975612]
[1743598963715,0.55196693,85033.0,85032.0,0.29985612]
[1743598964011,0.70196693,85033.0,85014.0,0.00047051]
[1743598964313,0.3608,85015.0,85014.0,0.00047051]
[1743598964811,0.55370823,85015.0,85014.0,0.00047051]
[1743598965009,0.55430824,85015.0,85014.0,0.00047051]
[1743598966909,0.58560824,85015.0,85006.0,0.00017639]
[1743598967105,0.3608,85007.0,85000.0,0.0319]
[1743598967413,0.0632,85006.0,85000.0,0.03266]
[1743598967607,0.19546991,85006.0,85000.0,0.0319]
[1743598969504,0.13226991,85006.0,85000.0,0.0319]
[1743598969709,0.0008,85006.0,85005.0,0.3608]
[1743598969912,0.0008,85006.0,85005.0,0.3708]
[1743598970107,0.0008,85006.0,85005.0,1.5108]
[1743598970302,0.3608,85015.0,85005.0,1.51156]
[1743598970507,0.3608,85015.0,85005.0,1.5108]
[1743598970816,0.3608,85008.0,85006.0,0.0611]
[1743598971110,0.3608,85008.0,84994.0,0.11279639]
[1743598971111,0.0303,85007.0,84994.0,0.00017639]
[1743598971303,0.24894622,85007.0,84995.0,0.03]
[1743598971706,0.3608,85001.0,84995.0,0.03]
[1743598971903,0.0653,85000.0,84994.0,0.00017639]
[1743598972110,0.19074622,85000.0,84994.0,0.00017639]
[1743598975307,0.19134623,85000.0,84998.0,0.0012306]
[1743598975717,0.15824623,85000.0,84999.0,0.0325]
[1743598979009,0.15824623,85000.0,84998.0,0.0004706]
[1743598979213,0.0319,84999.0,84998.0,0.0012306]
[1743598979414,0.03266,84999.0,84998.0,0.0012306]
[1743598979718,0.18757935,84999.0,84998.0,0.0012306]
[1743598981721,0.24757935,84999.0,84998.0,0.0012306]
[1743598982111,0.18757935,84999.0,84998.0,0.0012306]
[1743598982615,0.12557935,84999.0,84998.0,0.0012306]
[1743598982923,0.3608,85017.0,84998.0,0.3612706]
[1743598983125,0.00096001,85017.0,85006.0,0.3608]
[1743598983310,0.0315,85021.0,85007.0,0.0644]
[1743598983621,0.13945661,85020.0,85007.0,0.06544]
[1743598983812,0.01491125,85019.0,85007.0,0.0644]
[1743598984014,0.07881125,85019.0,85007.0,0.0644]
[1743598984210,0.1399234,85018.0,85007.0,0.0644]
[1743598984419,0.12501215,85018.0,85007.0,0.0644]
[1743598984723,0.0639,85017.0,85007.0,0.0644]
[1743598985213,0.0152959,85016.0,85007.0,0.0644]
[1743598985521,0.3608,85012.0,85007.0,0.0644]
[1743598985910,0.14379853,85011.0,85007.0,0.0644]
[1743598986107,0.12849899,85011.0,85007.0,0.0644]
[1743598986414,0.0322,85034.0,85007.0,0.0644]
[1743598986612,0.015446,85022.0,85015.0,0.3608]
[1743598986825,0.3608,85030.0,85016.0,0.0941]
[1743598987119,0.17520608,85032.0,85016.0,0.0941]
[1743598987327,0.01545969,85022.0,85016.0,0.0941]
[1743598987517,0.17520608,85032.0,85016.0,0.0941]
[1743598988023,0.01546915,85022.0,85016.0,0.0941]
[1743598988320,0.01547829,85021.0,85016.0,0.0941]
[1743598988518,0.01547829,85020.0,85016.0,0.09506]
[1743598988719,0.01560745,85019.0,85016.0,0.09506]
[1743598988926,0.17520608,85032.0,85016.0,0.09506]
[1743598989225,0.01560753,85022.0,85016.0,0.09506]
[1743598989425,0.01560753,85021.0,85016.0,0.09506]
[1743598989726,0.01562098,85020.0,85016.0,0.09506]
[1743598989926,0.1595851,85032.0,85016.0,0.84586]
[1743598990119,0.3608,85017.0,85016.0,0.03186]
[1743598990312,0.3608,85017.0,85007.0,0.3608]
[1743598990313,0.51753691,85017.0,85006.0,0.0316]
[1743598990514,0.3608,85010.0,84999.0,0.0323]
[1743598990723,0.3608,85003.0,84999.0,0.03298]
[1743598990927,0.07601691,85002.0,84999.0,0.03298]
[1743598991112,0.01561691,85001.0,84999.0,0.0323]
[1743598991317,0.19118576,85002.0,84999.0,0.0323]
[1743598991518,0.124097,85000.0,84999.0,0.0323]
[1743598991719,0.13186335,85000.0,84999.0,0.0323]
[1743598991920,0.00776635,85000.0,84999.0,0.0323]
[1743598992120,0.03776635,85000.0,84999.0,0.0323]
[1743598992617,0.05008266,85000.0,84999.0,0.0323]
[1743598993018,0.05008266,85000.0,84994.0,0.0316]
[1743598993225,0.0305,84999.0,84992.0,0.00017639]
[1743598993731,0.15589792,84999.0,84992.0,0.00017639]
[1743598993914,0.00017639,85010.0,84998.0,0.5112706]
[1743598994119,0.00017639,85010.0,85009.0,0.3608]
[1743598994425,0.00017639,85010.0,85009.0,1.14]
[1743598994815,0.00017639,85010.0,84999.0,0.0607]
[1743598995019,0.01494833,85009.0,84999.0,0.0607]
[1743598995217,0.00017639,85010.0,85005.0,0.3608]
[1743598995430,0.00017639,85010.0,85006.0,1.2007]
[1743598996317,0.01499363,85009.0,85006.0,1.2013]
[1743598996631,0.01499363,85008.0,85006.0,1.2013]
[1743598996817,0.0315,85042.0,85007.0,0.08108]
[1743598997016,0.3608,85048.0,85025.0,0.3608]
[1743598997220,0.00068,85033.0,85032.0,0.3608]
[1743598997527,0.3608,85048.0,85032.0,0.3714]
[1743598998028,0.00017639,85044.0,85033.0,0.0607]
[1743598998226,0.00017639,85044.0,85033.0,0.06134]
[1743598998426,0.00017639,85044.0,85033.0,0.07295126]
[1743598999725,0.00017639,85044.0,85033.0,0.06134]
[1743598999923,0.00017639,85044.0,85033.0,0.0730951]
[1743599000120,0.00017639,85044.0,85033.0,0.0830951]
[1743599000531,0.00017639,85044.0,85033.0,0.08036377]
[1743599001130,0.00017639,85044.0,85033.0,0.03124]
[1743599001637,0.00017639,85044.0,85034.0,0.0302]
[1743599001936,0.00017639,85044.0,85034.0,0.0308]
[1743599002523,0.00017639,85044.0,85035.0,0.032]
[1743599002729,0.00017639,85044.0,85035.0,0.0326]
[1743599003223,0.00108,85039.0,85035.0,0.0326]
[1743599003633,0.0652,85038.0,85035.0,0.0326]
[1743599004726,0.0652,85038.0,85035.0,0.0006]
[1743599005929,0.0652,85038.0,85035.0,0.0329]
[1743599006333,0.0652,85038.0,85036.0,0.0316]
[1743599006529,0.0652,85038.0,85036.0,0.0322]
[1743599006530,0.0325,85038.0,85036.0,0.0322]
[1743599006730,0.0325,85038.0,85037.0,0.0323]
[1743599006926,0.0004,85039.0,85037.0,0.0429]
[1743599007138,0.00108,85039.0,85038.0,0.0316]
[1743599007350,0.00108,85039.0,85038.0,0.0322]
[1743599007530,0.00108,85039.0,85038.0,0.0645]
[1743599008535,0.00108,85039.0,85038.0,1.2045]
[1743599008738,0.0004,85039.0,85038.0,1.2045]
[1743599011443,0.00017639,85044.0,85038.0,1.2045]
[1743599011642,0.00017639,85044.0,85043.0,0.3608]
[1743599011845,0.00017639,85044.0,85043.0,0.36148]
[1743599012743,0.36097639,85044.0,85043.0,0.00068]
[1743599012951,0.49804995,85044.0,85027.0,0.36097639]
[1743599013239,0.0948,85043.0,85029.0,0.0327]
[1743599013443,0.1148,85043.0,85029.0,0.0333]
[1743599013649,0.1232577,85042.0,85029.0,0.0333]
[1743599013850,0.1439777,85042.0,85029.0,0.0333]
[1743599014047,0.0638,85041.0,85029.0,0.0333]
[1743599014240,0.06452,85041.0,85029.0,0.0333]
[1743599014542,0.13172159,85040.0,85029.0,0.0006]
[1743599014751,0.3608,85034.0,85029.0,0.0006]
[1743599015054,0.0638,85033.0,85027.0,0.00017639]
[1743599015237,0.19628159,85033.0,85027.0,0.00017639]
[1743599015647,0.08072,85032.0,85027.0,0.00017639]
[1743599015944,0.1414,85032.0,85027.0,0.00017639]
[1743599016250,0.19323298,85031.0,85027.0,0.00017639]
[1743599016448,0.19391298,85031.0,85027.0,0.00017639]
[1743599017235,0.19391298,85031.0,85019.0,0.3608]
[1743599017549,0.3608,85026.0,85019.0,0.0006]